bitfinex-derivatives/quotes_BTCF0:USTF0_20250903
["timestamp","ask_amount","ask_price","bid_price","bid_amount"]
[1756896315031,1.26809655,111520.0,111510.0,0.38945587]
[1756896315232,1.26809655,111520.0,111510.0,0.42443587]
[1756896316636,1.26809655,111520.0,111510.0,0.38945587]
[1756896317640,1.26809655,111520.0,111510.0,0.42443587]
[1756896322529,1.26809655,111520.0,111510.0,0.0506]
[1756896322731,1.60695242,111520.0,111510.0,0.00448]
[1756896322939,1.96775242,111520.0,111510.0,0.00448]
[1756896323339,2.33775242,111520.0,111510.0,0.00448]
[1756896324132,1.96775242,111520.0,111510.0,0.00448]
[1756896325941,1.29004068,111520.0,111510.0,0.00448]
[1756896326148,1.96775242,111520.0,111510.0,0.00448]
[1756896343169,1.62869655,111520.0,111510.0,0.42781587]
[1756896343470,1.62869655,111520.0,111510.0,0.00448]
[1756896343471,1.96755242,111520.0,111510.0,0.00448]
[1756896343666,1.96755242,111520.0,111510.0,0.02834]
[1756896344170,1.96755242,111520.0,111510.0,0.05261]
[1756896346069,1.14859242,111520.0,111510.0,0.05261]
[1756896346366,0.92904068,111520.0,111510.0,0.75781587]
[1756896346563,1.26789655,111520.0,111510.0,0.75781587]
[1756896347466,1.26789655,111520.0,111510.0,0.42781587]
[1756896348762,1.26789655,111520.0,111510.0,0.39146587]
[1756896349374,1.26789655,111520.0,111510.0,0.08896]
[1756896349573,1.26789655,111520.0,111510.0,0.42781587]
[1756896351678,1.26789655,111520.0,111510.0,0.00448]
[1756896351972,1.60675242,111520.0,111510.0,0.00448]
[1756896352676,1.26789655,111520.0,111510.0,0.00448]
[1756896353175,1.26789655,111520.0,111510.0,0.02834]
[1756896353676,1.26789655,111520.0,111510.0,0.39146587]
[1756896354376,1.26785655,111520.0,111510.0,0.42781587]
[1756896358779,0.44893655,111520.0,111510.0,0.42781587]
[1756896359080,1.26785655,111520.0,111510.0,0.42781587]
[1756896360178,0.92900068,111520.0,111510.0,0.42781587]
[1756896360378,1.26785655,111520.0,111510.0,0.42781587]
[1756896360874,0.44893655,111520.0,111510.0,0.42781587]
[1756896361175,0.11008068,111520.0,111510.0,0.42781587]
[1756896361370,0.11008068,111520.0,111510.0,0.74781587]
[1756896361681,0.92896068,111520.0,111510.0,0.99781587]
[1756896366080,0.07262068,111520.0,111510.0,0.99781587]
[1756896366289,0.07302068,111520.0,111510.0,1.69747174]
[1756896366583,0.08544,111520.0,111510.0,1.69747174]
[1756896366786,0.08544,111520.0,111510.0,1.35861587]
[1756896367784,0.04893,111520.0,111510.0,1.69747174]
[1756896367984,0.04933,111520.0,111510.0,1.69747174]
[1756896368176,0.04933,111520.0,111510.0,1.35861587]
[1756896368377,0.04933,111520.0,111510.0,1.69747174]
[1756896369075,0.0014,111520.0,111510.0,1.69747174]
[1756896369588,0.0014,111520.0,111510.0,1.47144257]
[1756896373987,0.0014,111520.0,111510.0,2.29024257]
[1756896375492,0.0014,111520.0,111510.0,1.47144257]
[1756896375697,0.0014,111520.0,111510.0,2.29024257]
[1756896375987,0.03618,111520.0,111510.0,1.01976]
[1756896376191,0.03618,111520.0,111510.0,2.29024257]
[1756896376693,0.0014,111520.0,111510.0,2.29024257]
[1756896377397,0.0014,111520.0,111510.0,1.47144257]
[1756896377893,0.0014,111520.0,111510.0,2.29020257]
[1756896378691,0.0014,111520.0,111510.0,2.30853815]
[1756896379988,0.0009,111530.0,111520.0,0.1138613]
[1756896380184,0.0008,111530.0,111520.0,2.03469257]
[1756896380388,0.08388,111540.0,111530.0,0.03534]
[1756896380596,0.08458,111540.0,111530.0,1.21593257]
[1756896381587,0.08458,111540.0,111530.0,1.22939995]
[1756896383197,0.08658,111540.0,111530.0,1.22939995]
[1756896384502,0.08658,111540.0,111530.0,0.90939995]
[1756896385705,0.78826257,111540.0,111530.0,0.44873]
[1756896386204,1.1728282,111540.0,111530.0,0.00448]
[1756896387100,1.5328282,111540.0,111530.0,0.00448]
[1756896396926,1.58131603,111540.0,111520.0,0.0001]
[1756896397226,1.71490257,111530.0,111520.0,0.0001]
[1756896397415,1.7586682,111530.0,111510.0,0.03544]
[1756896397619,0.89626257,111520.0,111510.0,0.08355]
[1756896397917,0.9200282,111520.0,111510.0,0.08345]
[1756896399225,0.9200282,111520.0,111510.0,0.04811]
[1756896400924,0.9200282,111520.0,111510.0,0.08346]
[1756896401326,0.92903811,111520.0,111510.0,0.08346]
[1756896401629,0.92903811,111520.0,111510.0,0.04811]
[1756896402122,0.9200282,111520.0,111510.0,0.04811]
[1756896402528,0.9200282,111520.0,111510.0,0.08346]
[1756896406332,0.8852482,111520.0,111500.0,0.40957627]
[1756896406632,1.71165257,111510.0,111500.0,0.44745]
[1756896406929,1.71165257,111510.0,111500.0,0.10735]
[1756896407630,1.71165257,111510.0,111500.0,0.10835]
[1756896407831,0.08049,111510.0,111500.0,0.10835]
[1756896408034,1.35085257,111510.0,111500.0,0.10835]
[1756896408733,0.89917,111510.0,111500.0,0.10835]
[1756896408930,1.71165257,111510.0,111500.0,0.10835]
[1756896409125,1.71165257,111510.0,111500.0,0.052]
[1756896409326,1.71165257,111510.0,111500.0,0.00548]
[1756896409525,1.73542545,111510.0,111500.0,0.00548]
[1756896412433,1.98542545,111510.0,111500.0,0.00548]
[1756896412936,2.05865265,111510.0,111500.0,0.00548]
[1756896414437,2.43865265,111510.0,111500.0,0.00548]
[1756896419336,2.18865265,111510.0,111500.0,0.00548]
[1756896420444,1.61997265,111510.0,111500.0,0.00548]
[1756896420643,2.43873265,111510.0,111500.0,0.00548]
[1756896420838,1.61997265,111510.0,111500.0,0.00548]
[1756896421042,2.43873265,111510.0,111500.0,0.001]
[1756896422548,1.61997265,111510.0,111500.0,0.001]
[1756896422847,2.43873265,111510.0,111500.0,0.001]
[1756896423442,1.61997265,111510.0,111500.0,0.001]
[1756896423651,2.43873265,111510.0,111500.0,0.001]
[1756896424951,2.41495977,111510.0,111500.0,0.001]
[1756896425153,1.09828884,111510.0,111500.0,0.04852]
[1756896425353,2.05877141,111510.0,111500.0,0.08387]
[1756896425548,0.53828884,111510.0,111500.0,0.08387]
[1756896425756,1.35708884,111510.0,111500.0,0.08387]
[1756896426052,1.80877141,111510.0,111500.0,0.08387]
[1756896428353,0.98997141,111510.0,111500.0,0.08387]
[1756896428554,1.80877141,111510.0,111500.0,0.08387]
[1756896431357,1.80877141,111510.0,111500.0,0.02563]
[1756896431551,1.6960944,111510.0,111500.0,0.02563]
[1756896432751,1.6960944,111510.0,111500.0,0.04852]
[1756896434660,1.6960544,111510.0,111500.0,0.0825]
[1756896434861,0.8772944,111510.0,111500.0,0.0825]
[1756896435054,1.6960544,111510.0,111500.0,0.0825]
[1756896438157,1.3352544,111510.0,111500.0,0.0835]
[1756896438456,1.6960544,111510.0,111500.0,0.0835]
[1756896438860,1.6960544,111510.0,111500.0,0.0825]
[1756896438861,1.35706729,111510.0,111500.0,0.0825]
[1756896439057,1.6960544,111510.0,111500.0,0.0825]
[1756896439256,1.6960544,111510.0,111500.0,0.0815]
[1756896440365,0.06317,111500.0,111490.0,0.08808]
[1756896440559,0.4619272,111500.0,111490.0,0.42696711]
[1756896442261,0.4619272,111500.0,111490.0,0.08798]
[1756896442453,0.4619272,111500.0,111490.0,0.42696711]
[1756896442654,1.2806872,111500.0,111490.0,0.77696711]
[1756896442855,1.2806872,111500.0,111490.0,0.42696711]
[1756896443067,1.2806872,111500.0,111490.0,0.74696711]
[1756896443350,0.92757009,111500.0,111490.0,0.42696711]
[1756896443555,0.92757009,111500.0,111490.0,0.80696711]
[1756896443556,1.2665572,111500.0,111490.0,0.80696711]
[1756896443864,1.2665572,111500.0,111490.0,0.42696711]
[1756896444060,1.2665572,111500.0,111490.0,0.76696711]
[1756896444460,1.2665572,111500.0,111490.0,0.42696711]
[1756896444661,1.2665172,111500.0,111490.0,0.42696711]
[1756896444861,1.2806472,111500.0,111490.0,0.08798]
[1756896445061,1.2665172,111500.0,111490.0,0.79696711]
[1756896445262,1.2665172,111500.0,111490.0,0.42696711]
[1756896445667,1.2665172,111500.0,111490.0,0.73696711]
[1756896445867,0.89155009,111500.0,111490.0,0.98696711]
[1756896446166,0.92753009,111500.0,111490.0,0.98696711]
[1756896446858,0.92753009,111500.0,111490.0,0.98796711]
[1756896448267,1.2665172,111500.0,111490.0,0.67796711]
[1756896448468,0.92753009,111500.0,111490.0,0.67796711]
[1756896448765,1.2665172,111500.0,111490.0,0.67796711]
[1756896448967,1.2665172,111500.0,111490.0,0.67696711]
[1756896449367,0.92753009,111500.0,111490.0,0.67696711]
[1756896449567,1.2665172,111500.0,111490.0,0.67696711]
[1756896450571,1.2806472,111500.0,111490.0,0.67696711]
[1756896451070,1.2806472,111500.0,111490.0,0.67248711]
[1756896452168,1.2806472,111500.0,111490.0,0.67696711]
[1756896454570,1.2806472,111500.0,111490.0,0.33798]
[1756896454772,1.2806472,111500.0,111490.0,0.67696711]
[1756896456473,1.2806472,111500.0,111490.0,0.33798]
[1756896456668,1.2806472,111500.0,111490.0,0.304]
[1756896456875,1.98043431,111500.0,111490.0,0.59346711]
[1756896457069,1.98043431,111500.0,111490.0,0.25448]
[1756896457270,2.31043431,111500.0,111490.0,0.00448]
[1756896457672,1.98043431,111500.0,111490.0,0.00448]
[1756896458271,2.23043431,111500.0,111490.0,0.00448]
[1756896459672,2.90942142,111500.0,111480.0,0.0001]
[1756896459877,1.12399422,111490.0,111480.0,0.0001]
[1756896460078,1.14778431,111490.0,111470.0,0.03408]
[1756896460381,1.94267422,111480.0,111470.0,0.40242]
[1756896460677,1.96646431,111480.0,111470.0,0.36834]
[1756896461178,1.96659996,111480.0,111470.0,0.36834]
[1756896461372,1.28862574,111480.0,111470.0,0.36834]
[1756896461579,1.96659996,111480.0,111470.0,0.36834]
[1756896461783,1.28862574,111480.0,111470.0,0.36834]
[1756896462276,1.96659996,111480.0,111470.0,0.36834]
[1756896462780,1.96659996,111480.0,111470.0,0.36934]
[1756896463078,1.28862574,111480.0,111470.0,0.37134]
[1756896463674,1.62761285,111480.0,111470.0,0.71032711]
[1756896464173,1.60368711,111480.0,111470.0,0.71032711]
[1756896464379,1.2886115,111480.0,111470.0,0.71032711]
[1756896464684,1.62759861,111480.0,111470.0,0.37134]
[1756896465680,1.96658572,111480.0,111470.0,0.37134]
[1756896466481,1.94267422,111480.0,111470.0,0.37134]
[1756896468683,1.94267422,111480.0,111470.0,0.40847]
[1756896469681,1.12399422,111480.0,111470.0,0.40847]
[1756896469980,1.94271422,111480.0,111470.0,0.40847]
[1756896470179,1.60372711,111480.0,111470.0,0.40847]
[1756896471783,0.78500711,111480.0,111470.0,0.40847]
[1756896471985,1.60372711,111480.0,111470.0,0.40847]
[1756896473095,1.24292711,111480.0,111470.0,0.40847]
[1756896473382,1.24292711,111480.0,111470.0,0.74745711]
[1756896473875,0.90394,111480.0,111470.0,0.40847]
[1756896474183,1.24292711,111480.0,111470.0,0.74745711]
[1756896474684,0.42420711,111480.0,111470.0,0.74745711]
[1756896474877,1.24292711,111480.0,111470.0,0.74745711]
[1756896475282,1.24292711,111480.0,111470.0,0.40847]
[1756896476583,0.90394,111480.0,111470.0,0.40847]
[1756896476881,1.24292711,111480.0,111470.0,0.40847]
[1756896477286,1.58191422,111480.0,111470.0,0.40847]
[1756896477981,0.76319422,111480.0,111470.0,0.37134]
[1756896478180,1.58191422,111480.0,111470.0,0.37134]
[1756896478584,1.58191422,111480.0,111470.0,0.40847]
[1756896479584,1.58191422,111480.0,111470.0,0.74745711]
[1756896480283,0.76319422,111480.0,111470.0,0.74745711]
[1756896480484,1.58191422,111480.0,111470.0,0.74745711]
[1756896481082,1.58191422,111480.0,111470.0,0.40847]
[1756896481384,0.76319422,111480.0,111470.0,0.40847]
[1756896481584,1.58187422,111480.0,111470.0,0.40847]
[1756896481786,0.76319422,111480.0,111470.0,0.40847]
[1756896481980,1.58187422,111480.0,111470.0,0.40847]
[1756896482387,0.76319422,111480.0,111470.0,0.40847]
[1756896482587,1.58187422,111480.0,111470.0,0.40847]
[1756896483081,0.9039,111480.0,111470.0,0.40847]
[1756896483282,0.42420711,111480.0,111470.0,0.40847]
[1756896483479,0.42420711,111480.0,111470.0,0.74745711]
[1756896483678,1.24288711,111480.0,111470.0,0.74745711]
[1756896483979,1.24288711,111480.0,111470.0,0.40847]
[1756896484285,1.24288711,111480.0,111470.0,0.74745711]
[1756896485787,1.26680345,111480.0,111470.0,0.74745711]
[1756896486685,0.44812345,111480.0,111470.0,0.74745711]
[1756896486885,0.92781634,111480.0,111470.0,0.74745711]
[1756896487085,1.26680345,111480.0,111470.0,0.40847]
[1756896487286,1.26680345,111480.0,111470.0,0.74745711]
[1756896489390,1.26692345,111480.0,111470.0,0.74745711]
[1756896491494,1.26692345,111480.0,111470.0,0.40847]
[1756896491495,0.92793634,111480.0,111470.0,0.40847]
[1756896491894,0.92793634,111480.0,111470.0,0.37134]
[1756896492097,0.92793634,111480.0,111470.0,0.4059]
[1756896492595,1.74089567,111480.0,111470.0,0.4059]
[1756896492797,1.28873634,111480.0,111470.0,0.4059]
[1756896492997,1.74089567,111480.0,111470.0,0.4059]
[1756896493196,0.92209567,111480.0,111470.0,0.4059]
[1756896493391,1.74113567,111480.0,111470.0,0.4059]
[1756896493998,1.38033567,111480.0,111470.0,0.4059]
[1756896494598,0.92817634,111480.0,111470.0,0.4059]
[1756896494895,1.38033567,111480.0,111470.0,0.4059]
[1756896495600,0.92817634,111480.0,111470.0,0.4059]
[1756896495797,1.38033567,111480.0,111470.0,0.4059]
[1756896498406,0.56129567,111480.0,111470.0,0.4059]
[1756896498590,1.37997567,111480.0,111470.0,0.4059]
[1756896503208,0.92781634,111480.0,111470.0,0.4059]
[1756896503410,1.37997567,111480.0,111470.0,0.4059]
[1756896504107,1.38001143,111480.0,111470.0,0.4059]
[1756896506904,0.1091721,111480.0,111470.0,0.4059]
[1756896507111,1.38001143,111480.0,111470.0,0.4059]
[1756896508510,0.56133143,111480.0,111470.0,0.4059]
[1756896508709,0.1091721,111480.0,111470.0,0.4059]
[1756896508907,0.1091721,111480.0,111470.0,1.10805933]
[1756896509106,0.9278521,111480.0,111470.0,1.10805933]
[1756896509812,0.9278521,111480.0,111470.0,0.6559]
[1756896510009,1.38001143,111480.0,111470.0,0.59646]
[1756896510214,1.38001143,111480.0,111470.0,0.323]
[1756896510698,1.74081143,111480.0,111470.0,0.323]
[1756896510899,2.81297076,111480.0,111470.0,0.323]
[1756896511107,2.81297076,111480.0,111470.0,0.043]
[1756896511414,2.37081143,111480.0,111470.0,0.043]
[1756896511597,1.99081143,111480.0,111470.0,0.043]
[1756896512002,2.37081143,111480.0,111470.0,0.003]
[1756896512505,1.99081143,111480.0,111470.0,0.003]
[1756896513005,2.30081143,111480.0,111470.0,0.003]
[1756896515510,2.30081143,111480.0,111460.0,0.00458]
[1756896515813,0.53387933,111470.0,111460.0,0.00458]
[1756896516012,0.55783143,111470.0,111460.0,0.00448]
[1756896516616,0.55783143,111470.0,111460.0,0.00648]
[1756896517313,0.89783143,111470.0,111460.0,0.00648]
[1756896517510,0.87783143,111470.0,111460.0,0.04648]
[1756896517711,1.2677594,111470.0,111460.0,0.04648]
[1756896518128,1.2677594,111470.0,111460.0,0.04848]
[1756896518703,1.5177594,111470.0,111450.0,0.0001]
[1756896518903,1.69320933,111460.0,111450.0,0.02468]
[1756896519108,1.71716143,111460.0,111450.0,0.05]
[1756896519518,1.71716143,111460.0,111450.0,0.07458]
[1756896520118,1.71716143,111460.0,111450.0,0.05]
[1756896520513,1.71916143,111460.0,111450.0,0.05]
[1756896520711,0.01706,111450.0,111440.0,0.08454]
[1756896520918,0.51524933,111450.0,111440.0,0.40444]
[1756896521320,0.51524933,111450.0,111440.0,0.16444]
[1756896521516,0.58670022,111450.0,111440.0,0.16444]
[1756896521814,0.58670022,111450.0,111440.0,0.12815]
[1756896522021,0.58670022,111450.0,111440.0,0.16444]
[1756896522618,1.40614022,111450.0,111440.0,0.12815]
[1756896522818,0.58670022,111450.0,111440.0,0.12815]
[1756896523021,0.58670022,111450.0,111440.0,0.16444]
[1756896523213,1.40606022,111450.0,111440.0,0.16444]
[1756896523413,1.40806022,111450.0,111440.0,0.10458]
[1756896523614,1.40806022,111450.0,111440.0,0.04905]
[1756896523925,0.59170022,111450.0,111440.0,0.08534]
[1756896524120,1.41102022,111450.0,111440.0,0.08534]
[1756896524321,1.77182022,111450.0,111440.0,0.04905]
[1756896525319,1.77186022,111450.0,111440.0,0.04905]
[1756896525627,1.31958089,111450.0,111440.0,0.04905]
[1756896525921,1.77174022,111450.0,111440.0,0.04905]
[1756896526319,0.95250022,111450.0,111440.0,0.04905]
[1756896526515,0.95250022,111450.0,111440.0,0.08534]
[1756896526714,1.77162022,111450.0,111440.0,0.08534]
[1756896527923,0.95250022,111450.0,111440.0,0.08534]
[1756896528121,0.13954089,111450.0,111440.0,0.08534]
[1756896528323,0.95870089,111450.0,111440.0,0.08534]
[1756896528618,0.13954089,111450.0,111440.0,0.88749933]
[1756896528816,0.95870089,111450.0,111440.0,0.88749933]
[1756896529122,0.95902089,111450.0,111440.0,0.88749933]
[1756896529311,0.95902089,111450.0,111440.0,0.43534]
[1756896530526,0.13954089,111450.0,111440.0,0.43534]
[1756896530727,0.95902089,111450.0,111440.0,0.43534]
[1756896531126,0.95918089,111450.0,111440.0,0.43534]
[1756896531528,0.95918089,111450.0,111440.0,0.08534]
[1756896533427,0.95890089,111450.0,111440.0,0.08534]
[1756896534424,0.95894089,111450.0,111440.0,1.09749933]
[1756896534632,0.95894089,111450.0,111440.0,0.78749933]
[1756896534823,0.95882089,111450.0,111440.0,0.78749933]
[1756896535019,0.95878089,111450.0,111440.0,1.14829933]
[1756896535224,0.95878089,111450.0,111440.0,1.00614]
[1756896535525,0.95578089,111450.0,111440.0,1.00614]
[1756896535825,0.95678089,111450.0,111440.0,1.00614]
[1756896536629,0.95778089,111450.0,111440.0,1.00614]
[1756896537529,0.95578089,111450.0,111440.0,1.00614]
[1756896537728,0.95878089,111450.0,111440.0,1.00614]
[1756896538030,0.13954089,111450.0,111440.0,1.00614]
[1756896538234,0.98311359,111450.0,111440.0,1.00614]
[1756896538432,0.16343359,111450.0,111440.0,1.03614]
[1756896538627,0.98299359,111450.0,111440.0,0.71614]
[1756896538830,0.98299359,111450.0,111440.0,1.06614]
[1756896540235,0.98099359,111450.0,111440.0,0.77614]
[1756896540429,0.98099359,111450.0,111440.0,0.44614]
[1756896540636,0.98099359,111450.0,111440.0,0.79614]
[1756896540936,0.97899359,111450.0,111440.0,0.79614]
[1756896541137,0.98199359,111450.0,111440.0,0.44614]
[1756896541437,0.98199359,111450.0,111440.0,0.79614]
[1756896541925,0.98299359,111450.0,111440.0,0.79614]
[1756896542438,0.16343359,111450.0,111440.0,0.76614]
[1756896543241,0.98271359,111450.0,111440.0,0.82614]
[1756896543741,0.98271359,111450.0,111440.0,0.08534]
[1756896544429,1.43487292,111450.0,111440.0,0.08534]
[1756896545239,1.43487292,111450.0,111440.0,0.04905]
[1756896545431,1.43487292,111450.0,111440.0,0.02458]
[1756896545632,0.06465,111440.0,111430.0,0.11280437]
[1756896545837,0.54070203,111440.0,111430.0,0.39905]
[1756896546130,0.51680933,111440.0,111430.0,0.39905]
[1756896546335,0.54074039,111440.0,111430.0,0.39905]
[1756896546633,0.51680933,111440.0,111430.0,0.43534]
[1756896547027,0.51780933,111440.0,111430.0,0.43534]
[1756896547638,0.51980933,111440.0,111430.0,0.43534]
[1756896548232,0.54375918,111440.0,111430.0,0.43534]
[1756896548640,0.09159985,111440.0,111430.0,0.44416584]
[1756896548934,0.06765,111440.0,111430.0,1.25712517]
[1756896549142,0.81788,111440.0,111430.0,1.50712517]
[1756896549834,0.83494,111440.0,111430.0,1.50712517]
[1756896551541,0.81788,111440.0,111430.0,1.39425429]
[1756896551841,0.02006,111440.0,111430.0,1.39425429]
[1756896552033,0.83938,111440.0,111430.0,1.39425429]
[1756896552540,1.17866845,111440.0,111430.0,1.39425429]
[1756896553138,0.82216,111440.0,111430.0,1.39425429]
[1756896553949,0.003,111440.0,111430.0,1.39425429]
[1756896554239,0.82212,111440.0,111430.0,1.39425429]
[1756896555339,0.82212,111440.0,111430.0,1.05496584]
[1756896555542,0.82212,111440.0,111430.0,1.39425429]
[1756896556436,0.82216,111440.0,111430.0,1.48354274]
[1756896557542,0.82216,111440.0,111430.0,1.14425429]
[1756896558036,0.82116,111440.0,111430.0,1.14425429]
[1756896558242,0.81916,111440.0,111430.0,1.14425429]
[1756896558444,0.001,111440.0,111430.0,1.14425429]
[1756896559138,0.001,111440.0,111430.0,1.73354274]
[1756896559343,0.81922,111450.0,111430.0,1.73354274]
[1756896559545,0.84317149,111450.0,111440.0,1.0761069]
[1756896559739,0.84307149,111450.0,111440.0,1.4561069]
[1756896560245,0.86013149,111450.0,111440.0,1.4561069]
[1756896561545,0.83618,111450.0,111440.0,1.4561069]
[1756896561740,0.83718,111450.0,111440.0,1.4561069]
[1756896562044,0.83918,111450.0,111440.0,1.4561069]
[1756896562450,0.003,111450.0,111440.0,1.474393]
[1756896563146,0.02006,111450.0,111440.0,1.474393]
[1756896563848,0.003,111450.0,111440.0,1.474393]
[1756896564050,0.002,111450.0,111440.0,1.474393]
[1756896565140,0.003,111450.0,111440.0,1.474393]
[1756896565545,0.001,111450.0,111440.0,1.474393]
[1756896565848,0.002,111450.0,111440.0,1.474393]
[1756896567239,0.001,111450.0,111440.0,1.474393]
[1756896568044,1.20022845,111460.0,111450.0,0.06232]
[1756896568252,1.24689353,111460.0,111450.0,0.78833845]
[1756896569146,0.90760508,111460.0,111450.0,0.78833845]
[1756896569347,0.91060508,111460.0,111450.0,0.78833845]
[1756896570052,0.91060508,111460.0,111450.0,0.44905]
[1756896570254,0.91060508,111460.0,111450.0,0.78833845]
[1756896570553,1.24989353,111460.0,111450.0,0.78833845]
[1756896571163,1.25189353,111460.0,111450.0,0.78833845]
[1756896571863,0.43293353,111460.0,111450.0,0.78833845]
[1756896572064,1.25185353,111460.0,111450.0,0.78833845]
[1756896572465,1.25185353,111460.0,111450.0,0.76833845]
[1756896572764,1.25185353,111460.0,111450.0,0.42905]
[1756896572960,1.25185353,111460.0,111450.0,0.81833845]
[1756896573263,0.91256508,111460.0,111450.0,0.81833845]
[1756896573464,1.25185353,111460.0,111450.0,0.81833845]
[1756896576867,1.25185353,111460.0,111450.0,1.17913845]
[1756896579171,0.43293353,111460.0,111450.0,1.17913845]
[1756896579678,0.91252508,111460.0,111450.0,1.17913845]
[1756896580573,0.87064508,111460.0,111450.0,1.17913845]
[1756896580964,0.88670508,111460.0,111450.0,1.17913845]
[1756896581265,0.88570508,111460.0,111450.0,1.17913845]
[1756896582565,0.91052508,111460.0,111450.0,1.17913845]
[1756896583871,0.88659,111460.0,111450.0,1.17913845]
[1756896585765,0.88659,111460.0,111450.0,0.83985]
[1756896585965,0.88659,111460.0,111450.0,1.17913845]
[1756896586576,0.91052424,111460.0,111450.0,1.17913845]
[1756896591383,1.24981269,111460.0,111450.0,1.11913845]
[1756896595188,1.24981269,111460.0,111450.0,0.42312]
[1756896595379,0.91052424,111460.0,111450.0,0.42312]
[1756896595576,0.91052424,111460.0,111450.0,1.11885845]
[1756896595773,1.24981269,111460.0,111450.0,1.11885845]
[1756896595977,1.24981269,111460.0,111450.0,0.79885845]
[1756896596783,1.22587845,111460.0,111450.0,0.79885845]
[1756896599185,1.22587845,111460.0,111450.0,0.76240845]
[1756896599680,1.22587845,111460.0,111450.0,1.12885845]
[1756896600187,1.22587845,111460.0,111450.0,0.79885845]
[1756896600682,1.22587845,111460.0,111450.0,0.76240845]
[1756896601078,1.22587845,111460.0,111450.0,0.79885845]
[1756896601486,1.22587845,111460.0,111450.0,0.45957]
[1756896601688,1.24982555,111460.0,111450.0,0.45957]
[1756896602686,1.24982555,111460.0,111450.0,0.79885845]
[1756896605190,1.24982555,111460.0,111450.0,0.81885845]
[1756896605590,0.9105371,111460.0,111450.0,0.81885845]
[1756896605890,1.24982555,111460.0,111450.0,1.12885845]
[1756896606589,1.24982555,111460.0,111450.0,0.79885845]
[1756896606787,1.24982555,111460.0,111450.0,1.12885845]
[1756896607788,1.24982555,111460.0,111450.0,0.79885845]
[1756896607984,1.24982555,111460.0,111450.0,1.14885845]
[1756896608594,0.9105371,111460.0,111450.0,1.14885845]
[1756896608792,1.24982555,111460.0,111450.0,1.11885845]
[1756896609495,1.22587845,111460.0,111450.0,1.11885845]
[1756896609989,1.22587845,111460.0,111450.0,0.47957]
[1756896610190,1.22587845,111460.0,111450.0,1.10885845]
[1756896611492,1.2498355,111460.0,111450.0,1.15885845]
[1756896613495,0.91054705,111460.0,111450.0,0.81957]
[1756896615691,0.91054705,111460.0,111450.0,0.45957]
[1756896615898,0.01706,111450.0,111440.0,0.1002761]
[1756896616099,0.01706,111450.0,111440.0,0.4601761]
[1756896616100,0.53950316,111450.0,111440.0,0.4601761]
[1756896617397,0.54050316,111450.0,111440.0,0.4601761]
[1756896618095,0.51654821,111450.0,111440.0,0.4252161]
[1756896618295,1.15129306,111450.0,111440.0,0.13]
[1756896618501,1.15129306,111450.0,111430.0,0.03506]
[1756896618796,1.33422821,111440.0,111430.0,0.43199]
[1756896618998,1.33422821,111440.0,111430.0,0.43189]
[1756896618999,1.35817394,111440.0,111430.0,0.43189]
[1756896619198,1.33422821,111440.0,111430.0,0.43189]
[1756896620002,1.33922821,111440.0,111430.0,0.43189]
[1756896620305,1.33926821,111440.0,111430.0,0.43189]
[1756896620602,0.88695,111440.0,111430.0,0.43189]
[1756896621514,0.87289,111440.0,111430.0,0.43189]
[1756896621998,0.88995,111440.0,111430.0,0.43189]
[1756896623599,0.88995,111440.0,111430.0,0.79269]
[1756896628499,0.88995,111440.0,111430.0,0.43189]
[1756896630501,0.88995,111440.0,111430.0,0.79269]
[1756896632304,0.07123,111440.0,111430.0,0.79269]
[1756896632504,0.07123,111440.0,111430.0,1.24500821]
[1756896632505,0.03061,111440.0,111430.0,1.24500821]
[1756896632699,0.84933,111440.0,111430.0,1.24500821]
[1756896633209,0.88995,111440.0,111430.0,0.79269]
[1756896633602,1.34226821,111440.0,111430.0,0.43189]
[1756896634708,0.88995,111440.0,111430.0,0.43189]
[1756896636403,0.88995,111440.0,111430.0,0.79269]
[1756896638702,0.07123,111440.0,111430.0,0.79269]
[1756896638907,0.88995,111440.0,111430.0,1.24500821]
[1756896639108,0.88995,111440.0,111430.0,0.79269]
[1756896639309,0.07123,111440.0,111430.0,1.24500821]
[1756896639503,0.87289,111440.0,111430.0,1.24500821]
[1756896640205,0.88995,111440.0,111430.0,1.24500821]
[1756896643510,0.88995,111440.0,111430.0,1.2631165]
[1756896644915,0.88995,111440.0,111430.0,0.81079829]
[1756896645306,0.88995,111440.0,111430.0,1.2631165]
[1756896647213,0.91391672,111440.0,111430.0,1.2631165]
[1756896652017,0.88995,111440.0,111430.0,1.2631165]
[1756896652815,0.008,111440.0,111430.0,1.5131165]
[1756896654917,0.008,111440.0,111430.0,2.3317965]
[1756896655619,0.008,111440.0,111430.0,2.3317565]
[1756896658715,0.008,111440.0,111430.0,2.0817565]
[1756896660321,0.008,111440.0,111430.0,2.3317565]
[1756896660820,0.008,111440.0,111430.0,1.5131165]
[1756896661116,0.008,111440.0,111430.0,2.3317165]
[1756896661317,0.008,111440.0,111430.0,1.5131165]
[1756896661521,0.008,111440.0,111430.0,2.3317165]
[1756896662019,0.008,111440.0,111430.0,2.6925165]
[1756896664223,0.008,111440.0,111430.0,1.8739165]
[1756896664517,0.008,111440.0,111430.0,2.6924765]
[1756896664711,0.008,111440.0,111430.0,1.8739165]
[1756896664912,0.008,111440.0,111430.0,2.6924765]
[1756896666014,0.02506,111440.0,111430.0,2.6924765]
[1756896666327,0.52612821,111440.0,111430.0,0.81079829]
[1756896666514,0.77612821,111440.0,111430.0,0.81079829]
[1756896667011,0.32381,111440.0,111430.0,0.81079829]
[1756896668121,0.32381,111440.0,111430.0,0.81070157]
[1756896671625,0.07381,111440.0,111430.0,0.79269]
[1756896673518,0.41316874,111440.0,111430.0,1.13204874]
[1756896678626,0.07381,111440.0,111430.0,1.13204874]
[1756896678828,0.41316874,111440.0,111430.0,1.13204874]
[1756896680122,0.41316874,111440.0,111430.0,0.78204874]
[1756896680327,0.41316874,111440.0,111430.0,0.86204874]
[1756896684730,0.41316874,111440.0,111430.0,0.52269]
[1756896684921,0.77640573,111440.0,111430.0,0.08189]
[1756896685321,1.02640573,111440.0,111430.0,0.08189]
[1756896685522,1.38720573,111440.0,111430.0,0.08189]
[1756896685922,1.40720573,111440.0,111430.0,0.08189]
[1756896686122,1.40720573,111440.0,111430.0,0.04693]
[1756896686524,1.72720573,111440.0,111430.0,0.04693]
[1756896687232,1.40720573,111440.0,111430.0,0.04693]
[1756896687528,1.40720573,111440.0,111430.0,0.02305]
[1756896688331,1.40720573,111440.0,111430.0,0.04689]